bitfinex/quotes_ETHUSD_20241217
["timestamp","ask_amount","ask_price","bid_price","bid_amount"]
[1734429511860,0.18599414,4019.0,4018.7,5.31400062]
[1734429512187,0.18599414,4018.9,4018.7,5.31400062]
[1734429512430,1.44963438,4019.1,4018.7,5.31400062]
[1734429512570,0.18603086,4019.0,4018.7,2.31400062]
[1734429512769,0.18603086,4018.9,4018.7,2.31400062]
[1734429513013,1.44963438,4019.1,4018.7,2.31400062]
[1734429513304,1.40496344,4019.0,4018.7,2.31400062]
[1734429513510,14.00496344,4019.0,4018.7,2.31400062]
[1734429513711,0.18602078,4018.9,4018.7,2.31400062]
[1734429514011,14.00496344,4019.0,4018.7,2.31400062]
[1734429514167,0.18601148,4018.9,4018.7,2.31400062]
[1734429514368,14.00496344,4019.0,4018.7,2.31400062]
[1734429514608,1.18882057,4018.9,4018.7,2.31400062]
[1734429514814,0.18602441,4018.8,4018.7,2.31400062]
[1734429514994,1.75192441,4018.8,4018.7,2.31400062]
[1734429515782,0.18602441,4018.8,4018.7,2.31400062]
[1734429516321,0.18602441,4018.8,4018.7,5.58312071]
[1734429516486,12.6,4019.0,4018.8,3.0]
[1734429516682,14.01659,4019.0,4018.8,3.0]
[1734429516885,0.18600623,4018.9,4018.8,3.0]
[1734429517697,0.18600623,4018.9,4018.7,2.31400062]
[1734429517918,14.01659,4019.0,4018.7,2.31400062]
[1734429517919,0.18600623,4018.8,4018.7,2.31400062]
[1734429520016,14.01659,4019.0,4018.7,2.31400062]
[1734429520217,1.74425429,4018.9,4018.7,2.31400062]
[1734429520378,0.18600529,4018.8,4018.7,2.31400062]
[1734429523129,0.18600529,4018.8,4018.3,2.31400062]
[1734429523279,14.1659,4018.8,4018.1,0.26912009]
[1734429523480,1.03995587,4018.2,4017.0,1.587]
[1734429523722,1.0407793,4017.9,4017.0,1.587]
[1734429523896,3.37802173,4017.8,4016.6,1.587]
[1734429524102,3.90314243,4017.7,4016.6,1.587]
[1734429524312,1.94036947,4017.6,4016.6,1.587]
[1734429524629,0.1859773,4017.5,4016.6,1.587]
[1734429524779,0.1859773,4017.4,4016.6,4.587]
[1734429524997,0.1859773,4017.3,4016.6,4.587]
[1734429525202,1.75439217,4017.6,4016.6,4.587]
[1734429525403,0.50101418,4017.5,4016.6,4.587]
[1734429525638,0.31532878,4017.5,4016.7,0.250091]
[1734429525999,0.31532878,4017.5,4016.9,2.31400062]
[1734429526194,1.5659,4017.7,4017.0,3.0]
[1734429526415,12.6,4017.8,4017.3,2.31400062]
[1734429526609,1.6627,4018.1,4017.7,2.31400062]
[1734429526610,12.6,4018.0,4017.7,2.31400062]
[1734429526816,12.6,4018.0,4017.8,3.250091]
[1734429527943,12.6,4018.0,4017.7,2.31400062]
[1734429531627,12.6,4018.4,4017.7,2.31400062]
[1734429531839,1.42627,4018.3,4017.7,2.31400062]
[1734429532458,12.6,4018.3,4018.2,3.0]
[1734429532748,1.6627,4018.9,4018.2,3.0]
[1734429532749,12.6,4018.8,4018.2,3.0]
[1734429532918,12.6,4018.8,4018.7,2.31400062]
[1734429534521,1.6627,4019.5,4018.7,2.31400062]
[1734429534522,12.6,4019.4,4018.8,3.0]
[1734429534720,12.6,4019.4,4019.1,2.31400062]
[1734429534948,1.42627,4019.3,4019.1,2.31400062]
[1734429536267,12.6,4019.4,4019.1,2.31400062]
[1734429537703,12.6,4019.8,4019.1,2.31400062]
[1734429537947,12.6,4019.8,4019.5,2.31400062]
[1734429538352,12.6,4019.8,4019.5,5.31400062]
[1734429538765,12.6,4019.8,4019.5,2.31400062]
[1734429538906,1.26,4019.7,4019.5,2.31400062]
[1734429540618,1.6232,4019.6,4018.7,5.31400062]
[1734429541040,1.6232,4019.6,4019.1,2.31400062]
[1734429541223,12.6,4019.8,4019.5,2.31400062]
[1734429542907,12.6,4019.8,4019.6,3.30545342]
[1734429543263,12.6,4019.8,4019.6,3.0]
[1734429543442,13.86,4019.8,4019.6,3.0]
[1734429543635,13.86,4019.8,4019.5,2.31400062]
[1734429543873,1.6232,4019.7,4019.5,2.31400062]
[1734429545642,13.86,4019.8,4019.5,2.31400062]
[1734429545987,2.0780717,4020.8,4019.5,2.31400062]
[1734429545988,12.6,4020.0,4019.6,5.24846108]
[1734429546194,12.6,4020.0,4019.9,2.31400062]
[1734429546484,12.6,4020.0,4019.9,5.9079617]
[1734429547888,12.6,4020.0,4019.9,5.31400062]
[1734429548092,12.6,4020.0,4019.9,2.31400062]
[1734429548261,13.86,4020.0,4019.9,2.31400062]
[1734429548841,14.9832,4020.0,4019.5,2.31400062]
[1734429549671,14.4832,4020.0,4019.5,2.31400062]
[1734429550080,14.4832,4020.0,4019.1,2.31400062]
[1734429551263,14.4832,4020.0,4019.5,2.31400062]
[1734429551483,1.44832,4019.9,4019.5,2.31400062]
[1734429552386,1.44832,4019.9,4019.2,3.0]
[1734429552387,1.6232,4019.8,4019.2,3.0]
[1734429554002,11.6,4019.9,4019.6,2.31400062]
[1734429554150,11.6,4019.9,4019.6,2.60250828]
[1734429554350,11.6,4019.9,4019.7,3.0]
[1734429556379,11.6,4019.9,4019.6,2.31400062]
[1734429556380,12.76,4019.9,4019.6,2.31400062]
[1734429556681,11.6,4019.9,4019.6,2.31400062]
[1734429561272,1.84775767,4019.8,4019.6,2.31400062]
[1734429561471,0.18575767,4019.7,4019.6,2.31400062]
[1734429561651,11.78575767,4019.7,4019.2,2.31400062]
[1734429561853,11.78575767,4019.7,4019.2,5.31400062]
[1734429561854,0.18575767,4019.6,4019.2,5.31400062]
[1734429562102,0.18575767,4019.5,4019.2,5.31400062]
[1734429562269,0.18575767,4019.4,4019.2,5.31400062]
[1734429562476,11.6,4019.7,4019.2,5.31400062]
[1734429562689,1.51213675,4019.6,4019.2,2.60250828]
[1734429562896,0.18593675,4019.5,4019.3,3.0]
[1734429563113,0.18593675,4019.4,4019.3,3.0]
[1734429564084,1.3262,4019.6,4019.3,3.0]
[1734429564283,0.18604063,4019.5,4019.3,3.0]
[1734429564515,0.18604063,4019.4,4019.3,3.0]
[1734429564687,11.78604063,4019.4,4019.3,3.0]
[1734429564888,11.6,4019.4,4019.3,3.0]
[1734429565491,11.78604882,4019.4,4019.3,3.0]
[1734429570728,11.78604882,4019.4,4019.2,2.31400062]
[1734429570729,1.662,4019.3,4019.2,2.31400062]
[1734429570935,1.84804882,4019.3,4019.2,2.31400062]
[1734429573633,1.84799727,4019.3,4019.2,2.31400062]
[1734429574014,1.84799746,4019.3,4019.2,2.31400062]
[1734429574432,0.18599746,4019.3,4019.2,2.31400062]
[1734429575343,1.64865769,4019.3,4019.2,2.31400062]
[1734429575929,2.50898895,4019.3,4018.8,2.31400062]
[1734429576135,0.18599746,4019.2,4018.8,2.31400062]
[1734429576292,0.18599746,4019.1,4018.8,2.31400062]
[1734429576492,11.6,4019.4,4018.8,2.31400062]
[1734429576835,0.18599744,4019.3,4018.8,2.31400062]
[1734429577006,0.18599744,4019.2,4018.9,3.0]
[1734429577208,0.18599744,4019.1,4018.9,3.0]
[1734429577418,14.22499481,4019.4,4018.9,3.0]
[1734429577594,1.04669396,4019.3,4018.9,3.0]
[1734429577791,0.1860142,4019.2,4018.9,3.0]
[1734429577991,13.18595896,4019.4,4018.9,3.0]
[1734429577992,11.6,4019.4,4018.9,3.0]
[1734429578230,11.6,4019.4,4019.0,0.28850766]
[1734429578231,0.18600657,4019.3,4019.0,0.28850766]
[1734429578533,0.18600657,4019.2,4019.0,2.21076108]
[1734429578739,11.6,4019.4,4019.2,3.0]
[1734429578941,0.18601032,4019.3,4019.2,3.28850766]
[1734429579637,12.6471996,4019.3,4019.2,3.28850766]
[1734429579999,11.78601032,4019.3,4019.2,3.28850766]
[1734429580195,12.6472001,4019.3,4019.2,3.28850766]
[1734429580399,12.64719979,4019.3,4019.2,3.28850766]
[1734429581017,12.64728957,4019.3,4019.2,3.28850766]
[1734429581206,16.22157696,4019.3,4018.7,2.31400062]
[1734429581407,2.33920448,4019.2,4018.7,2.31400062]
[1734429581618,4.95268129,4019.1,4018.7,2.31400062]
[1734429581973,2.33937492,4019.0,4018.5,3.30545342]
[1734429582256,0.18599823,4018.9,4018.6,0.28850766]
[1734429582418,1.5743,4019.1,4018.6,0.28850766]
[1734429582613,0.18599845,4019.0,4018.6,0.28850766]
[1734429582867,1.5743,4019.1,4018.7,2.31400062]
[1734429582868,0.18599845,4018.9,4018.7,2.31400062]
[1734429583069,12.63903585,4019.3,4018.8,0.28850766]
[1734429583376,0.18598835,4019.2,4019.1,2.31400062]
[1734429583518,11.6,4019.3,4019.1,5.60250828]
[1734429583861,11.6,4019.3,4019.2,3.28850766]
[1734429584072,11.78596374,4019.3,4019.2,3.59396108]
[1734429584270,11.6,4019.3,4019.2,3.59396108]
[1734429584476,11.78598428,4019.3,4019.2,3.59396108]
[1734429584980,11.6,4019.3,4019.2,3.59396108]
[1734429586361,11.6,4019.3,4019.2,5.10376108]
[1734429586939,11.6,4019.3,4019.2,7.4177617]
[1734429587234,11.6,4019.3,4019.2,5.10376108]
[1734429587763,11.6,4019.3,4019.2,7.4177617]
[1734429587924,11.6,4019.3,4019.2,9.34615408]
[1734429588260,11.6,4019.3,4019.2,15.00992459]
[1734429588472,11.6,4019.3,4019.2,15.00979921]
[1734429589097,11.6,4019.3,4019.2,15.00980301]
[1734429589423,11.6,4019.3,4019.2,15.13157055]
[1734429591345,11.6,4019.3,4019.2,14.09592286]
[1734429591546,11.6,4019.3,4019.2,11.78192224]
[1734429591852,11.6,4019.3,4019.2,11.34725524]
[1734429592059,1.03903585,4020.6,4019.2,13.66125586]
[1734429592252,0.72,4020.8,4020.5,2.31400062]
[1734429592567,0.51346696,4020.7,4020.5,2.31400062]
[1734429592773,0.72,4020.8,4020.5,2.31400062]
[1734429595836,0.72,4020.9,4020.5,2.31400062]
[1734429600188,0.72,4020.9,4020.5,2.61945404]
[1734429600484,0.72,4020.9,4020.6,3.0]
[1734429600657,0.72,4020.9,4020.6,3.59396108]
[1734429600855,0.72,4020.9,4020.8,3.0]
[1734429601063,0.72,4020.9,4020.8,0.59396108]
[1734429601946,0.72,4020.9,4020.8,0.30545342]
[1734429603667,0.72,4021.4,4020.8,0.30545342]
[1734429603960,0.72,4021.4,4021.0,2.31400062]
[1734429604390,0.72,4021.4,4021.1,3.0]
[1734429606886,65.42230146,4021.8,4021.1,3.0]
[1734429607190,65.42230146,4021.8,4020.6,2.31400062]
[1734429607408,65.42230146,4021.8,4021.0,2.31400062]
[1734429607751,65.42230146,4021.8,4021.1,3.0]
[1734429608365,65.42230146,4021.8,4021.1,3.59396108]
[1734429608605,2.55613921,4021.7,4021.1,3.59396108]
[1734429608754,2.55613921,4021.7,4021.1,0.59396108]
[1734429608960,2.55613921,4021.7,4020.9,2.31400062]
[1734429609385,2.55613921,4021.7,4020.7,1.5098]
[1734429609654,2.55613921,4021.7,4020.9,2.31400062]
[1734429609855,1.5186,4021.5,4020.9,2.31400062]
[1734429610083,1.5186,4021.5,4020.8,3.0]
[1734429610315,1.5186,4021.5,4021.3,3.0]
[1734429611376,1.5186,4021.5,4020.9,2.31400062]
[1734429611983,1.5186,4021.5,4021.0,3.0]
[1734429612188,65.42230146,4021.8,4021.3,2.31400062]
[1734429612389,67.97844067,4021.8,4021.7,2.31400062]
[1734429612909,65.42230146,4021.8,4021.7,2.31400062]
[1734429613100,65.42230146,4021.8,4021.7,5.9079617]
[1734429613282,65.42230146,4021.8,4021.7,7.4177617]
[1734429614499,65.42230146,4021.8,4021.7,7.12925404]
[1734429614703,65.42230146,4021.8,4021.7,2.31400062]
[1734429616175,65.42230146,4021.8,4021.7,6.82380062]
[1734429617224,65.42230146,4021.8,4021.7,2.31400062]
[1734429618777,65.42230146,4021.8,4021.7,3.97200062]
[1734429618973,65.42230146,4021.8,4021.7,7.27745404]
[1734429622549,65.42230146,4021.8,4021.7,6.97200062]
[1734429625302,56.82944722,4021.8,4021.7,7.5659617]
[1734429625508,56.82944722,4021.8,4021.7,13.7709877]
[1734429625713,56.82944722,4021.8,4021.7,16.08498832]
[1734429626058,56.61872482,4021.8,4021.7,16.08498832]
[1734429626261,54.50015784,4021.8,4021.7,16.08498832]
[1734429626812,54.50015784,4021.8,4021.7,13.89757174]
[1734429628665,54.30806884,4021.8,4021.7,13.89757174]
[1734429629195,54.30806884,4021.8,4021.7,3.97200062]
[1734429629392,54.30806884,4021.8,4021.7,1.658]
[1734429629569,54.30806884,4021.8,4021.4,1.658]
[1734429629884,54.30806884,4021.8,4021.7,2.31400062]
[1734429631188,58.36740805,4021.8,4020.9,2.44168149]
[1734429631372,1.5032,4021.7,4020.5,2.61945404]
[1734429631572,1.5032,4021.7,4020.5,2.31400062]
[1734429631814,1.5032,4021.7,4020.5,2.61945404]
[1734429632119,1.5032,4021.7,4020.9,2.31400062]
[1734429632266,54.30806884,4021.8,4021.3,2.31400062]
[1734429632473,54.30806884,4021.8,4021.7,2.31400062]
[1734429632709,54.30806884,4021.8,4021.7,2.61945404]
[1734429633302,54.30806884,4021.8,4021.7,2.9079617]
[1734429633664,54.30806884,4021.8,4021.7,5.9079617]
[1734429635196,54.30806884,4021.8,4021.7,2.31400062]
[1734429636922,54.30806884,4021.8,4021.6,3.0]
[1734429636923,1.5032,4021.7,4020.8,3.86980062]
[1734429637072,1.5032,4021.7,4020.8,4.17525404]
[1734429637274,1.5032,4021.7,4020.8,4.4637617]
[1734429637682,1.5032,4021.7,4020.8,2.9079617]
[1734429638025,1.5032,4021.7,4021.2,2.31400062]
[1734429638513,1.5032,4021.7,4020.9,0.28850766]
[1734429638514,1.5032,4021.7,4020.9,3.0]
[1734429638718,1.5032,4021.5,4020.4,2.61945404]
[1734429639775,1.5032,4021.5,4021.0,1.0]
[1734429641515,2.55613921,4021.6,4021.0,1.0]
[1734429641516,2.0532,4021.3,4021.0,1.0]
[1734429641839,1.5032,4021.1,4021.0,1.0]
[1734429641992,2.91140843,4021.1,4021.0,1.0]
[1734429642198,4.74977562,4021.1,4021.0,1.0]
[1734429642395,0.55,4021.0,4019.6,2.60250828]
[1734429642701,1.5032,4020.8,4019.6,0.28850766]
[1734429643022,1.5032,4020.8,4019.2,2.44084657]
[1734429643023,1.5032,4020.6,4019.2,2.31400062]
[1734429643427,1.5032,4020.6,4019.2,2.60250828]
[1734429643624,1.5032,4020.6,4019.3,0.28850766]
[1734429643794,1.5032,4020.6,4019.6,2.31400062]
[1734429643995,1.5032,4020.6,4019.7,0.59396108]
[1734429644261,1.78367491,4020.6,4019.7,3.59396108]
[1734429645338,1.78367491,4020.6,4019.7,3.28850766]
[1734429645563,1.78367491,4020.6,4019.6,2.31400062]
[1734429646373,0.55,4020.3,4018.8,5.31400062]
[1734429646568,1.59,4020.2,4018.8,2.31400062]
[1734429646765,1.59,4020.2,4018.8,2.60250828]
[1734429647523,0.55,4020.3,4018.1,0.30545342]
[1734429647524,0.55,4019.9,4018.1,0.30545342]
[1734429647867,1.59,4019.8,4018.4,2.60250828]
[1734429648666,1.59,4019.8,4018.5,3.0]
[1734429649021,1.59,4019.6,4018.4,0.28850766]
[1734429649395,1.59,4019.2,4017.9,2.60250828]
[1734429649568,1.59,4019.2,4018.0,0.28850766]
[1734429649916,1.5892,4019.2,4018.0,0.28850766]
[1734429650529,0.55,4019.3,4018.0,0.28850766]
[1734429651059,0.55,4019.4,4017.5,0.28850766]
[1734429651285,0.55,4019.2,4017.5,0.28850766]
[1734429651488,0.55,4019.2,4017.5,3.28850766]
[1734429651640,9.28,4019.2,4017.5,0.28850766]
[1734429651839,9.28,4019.0,4017.0,2.31400062]
[1734429652044,9.28,4019.0,4017.1,0.28850766]
[1734429652045,0.55,4018.8,4017.1,0.28850766]
[1734429652856,0.55,4018.8,4016.7,2.85078826]
[1734429652857,8.73,4018.7,4016.7,2.85078826]
[1734429653075,1.59,4018.3,4016.3,2.85078826]
[1734429653278,0.55,4017.8,4016.3,3.13929592]
[1734429653480,1.59,4017.7,4016.3,3.13929592]
[1734429653651,1.59,4017.5,4016.3,3.13929592]
[1734429655345,1.59,4017.5,4016.4,3.0]
[1734429655686,1.59,4017.5,4016.4,3.28850766]
[1734429655857,1.59,4017.5,4016.5,0.28850766]
[1734429656938,1.59,4017.5,4016.4,3.0]
[1734429657052,1.5317,4017.3,4016.4,3.0]
[1734429657663,1.5317,4017.3,4016.4,3.28850766]
[1734429657859,1.5317,4017.3,4016.8,3.0]
[1734429658771,1.5317,4017.3,4016.4,3.0]
[1734429660099,1.5317,4017.3,4016.5,0.28850766]
[1734429662897,4.02608832,4019.3,4017.2,3.0]
[1734429662898,8.73,4019.2,4017.2,3.0]
[1734429664619,8.73,4019.2,4018.3,3.0]
[1734429664786,8.73,4019.7,4018.0,3.0]
[1734429665613,8.73,4019.7,4017.6,3.0]
[1734429665915,1.5344,4019.6,4017.6,3.0]
[1734429666072,1.5344,4019.4,4017.6,3.0]
[1734429666272,1.5344,4019.2,4017.6,3.0]
[1734429666675,1.57644,4019.5,4017.6,3.0]
[1734429666982,0.55,4019.1,4017.7,0.28850766]
[1734429667614,1.5344,4019.0,4017.6,3.0]
[1734429667910,1.68784,4018.9,4017.6,3.0]
[1734429668270,1.5344,4018.9,4017.7,0.28850766]
[1734429668811,1.5344,4018.9,4017.6,3.0]
[1734429669325,1.5344,4018.9,4017.7,0.28850766]
[1734429669523,1.5344,4018.9,4018.2,3.0]
[1734429670101,1.5344,4018.9,4018.3,0.28850766]
[1734429671225,1.5344,4019.7,4018.3,0.28850766]
[1734429671519,1.5344,4019.7,4018.7,3.0]
[1734429672376,1.5344,4019.7,4018.2,3.0]
[1734429672769,1.5344,4019.7,4018.3,0.28850766]
[1734429673414,1.5344,4019.7,4018.2,3.0]
[1734429674020,1.5344,4019.7,4018.3,2.31456155]
[1734429675387,1.5344,4019.5,4018.3,2.31456155]
[1734429675573,1.5344,4019.5,4018.4,3.0]
[1734429675991,1.5344,4019.5,4018.4,0.28850766]
[1734429676420,1.5344,4019.5,4018.4,3.28850766]
[1734429676976,1.5344,4019.5,4018.3,2.31456155]
[1734429679725,1.6254,4019.3,4017.6,5.31456155]
[1734429679929,1.6254,4019.3,4017.6,2.31456155]
[1734429680226,1.6254,4019.0,4017.6,2.31456155]
[1734429680520,1.6254,4018.8,4017.6,2.31456155]
[1734429680819,1.6254,4018.8,4018.0,2.31456155]
[1734429682493,1.6254,4018.8,4018.1,3.28850766]
[1734429685913,1.6254,4018.8,4018.0,2.31456155]
[1734429686797,1.6254,4018.8,4017.6,0.28850766]
[1734429686798,1.6254,4018.8,4017.6,2.31456155]
[1734429687036,1.78794,4018.7,4017.6,2.31456155]
[1734429687236,2.1754,4018.6,4017.2,2.31456155]
[1734429687457,1.6254,4018.4,4017.2,2.31456155]
[1734429687951,0.55,4018.2,4017.2,2.31456155]
[1734429688151,1.6254,4017.8,4016.4,2.31456155]
[1734429688376,0.55,4017.9,4016.4,2.31456155]
[1734429688573,1.6254,4017.7,4016.4,2.31456155]
[1734429688851,0.55,4017.9,4016.4,2.31456155]
[1734429688852,1.6254,4017.5,4016.4,2.31456155]
[1734429690065,0.9454,4017.5,4016.5,0.28850766]
[1734429690835,0.9454,4017.5,4016.5,3.28850766]
[1734429691410,1.91294,4017.5,4016.5,3.28850766]
[1734429691641,1.91294,4017.5,4016.8,2.31456155]
[1734429692953,0.96754,4017.5,4016.4,2.31456155]
[1734429693251,1.6254,4017.4,4016.4,2.31456155]
[1734429695070,1.6254,4017.4,4016.5,3.0]
[1734429695265,1.884694,4017.4,4016.5,3.0]
[1734429696931,1.884694,4017.4,4016.8,2.31456155]
[1734429698074,1.6254,4017.4,4016.8,2.31456155]
[1734429698276,8.73,4017.7,4017.2,2.31456155]
[1734429698685,1.6254,4017.8,4017.6,2.31456155]
[1734429698870,8.73,4018.7,4017.6,2.31456155]
[1734429698871,1.6254,4018.5,4017.6,2.31456155]
[1734429701021,1.6254,4018.5,4018.0,2.31456155]
[1734429705199,1.6254,4019.0,4018.4,2.31456155]
[1734429705345,2.92069896,4019.0,4018.4,2.31456155]
[1734429705542,1.6254,4019.0,4018.4,2.31456155]
[1734429705746,1.6254,4019.0,4018.8,2.31456155]
[1734429706194,0.55,4019.2,4018.8,2.31456155]
[1734429707914,0.55,4019.2,4018.4,2.31456155]
[1734429709325,0.55,4019.0,4018.0,5.31456155]
[1734429709548,1.5348,4018.7,4018.0,5.31456155]
[1734429710803,0.55,4018.6,4018.0,5.31456155]
[1734429711107,0.55,4018.6,4017.6,2.31456155]
[1734429711108,1.5613,4018.5,4017.6,2.31456155]
[1734429711865,1.40872395,4018.4,4017.3,0.28850766]
[1734429712071,0.55,4018.0,4017.3,0.28850766]
[1734429712430,1.5613,4018.1,4017.3,0.28850766]
[1734429712431,0.55,4017.8,4017.3,0.28850766]
[1734429712783,0.55,4017.8,4017.2,2.31456155]
[1734429714031,1.77243,4017.9,4017.3,0.28850766]
[1734429714419,1.77243,4017.9,4017.3,3.28850766]
[1734429715497,1.77243,4017.9,4017.6,2.31456155]
[1734429715835,1.77243,4017.9,4017.7,3.0]
[1734429717706,8.73,4018.2,4017.7,3.28850766]
[1734429717941,1.5613,4018.5,4018.0,2.31456155]
[1734429719848,1.5613,4018.5,4018.1,3.28850766]
[1734429720740,8.73,4018.9,4018.4,2.31456155]
[1734429720741,1.5269,4018.8,4018.4,2.31456155]
[1734429720912,2.65649358,4018.8,4018.4,2.31456155]
[1734429721112,1.5269,4018.8,4018.4,2.31456155]
[1734429721527,1.5269,4018.8,4018.0,1.0]
[1734429721528,0.85900837,4018.7,4018.0,3.31456155]
[1734429721843,0.85900837,4018.7,4018.1,3.0]
[1734429722405,0.55,4018.6,4018.1,3.0]
[1734429722605,0.52636441,4018.5,4018.1,3.0]
[1734429723257,0.52636441,4018.5,4018.0,1.0]
[1734429723409,0.55,4018.2,4018.0,1.0]
[1734429723613,2.93619641,4018.1,4018.0,0.859375]
[1734429723815,0.55,4018.0,4017.1,2.31456155]
[1734429724012,2.0769,4017.8,4017.1,2.31456155]
[1734429724212,2.0769,4017.8,4017.5,2.31456155]
[1734429724426,2.0769,4017.8,4017.5,2.60306921]
[1734429724626,1.5269,4017.8,4017.5,2.60306921]
[1734429725030,1.5269,4017.8,4017.6,0.28850766]
[1734429725263,0.19526013,4017.7,4017.6,3.28850766]
[1734429725942,1.5269,4017.8,4017.6,3.28850766]
[1734429726452,1.5269,4017.8,4017.5,2.31456155]
[1734429726837,2.0769,4018.1,4017.6,3.28850766]
[1734429727641,2.0769,4018.1,4017.5,2.31456155]
[1734429727840,0.20769,4018.0,4017.5,2.31456155]
[1734429728039,0.13046362,4018.0,4017.5,2.31456155]
[1734429728624,0.55,4017.8,4017.1,2.60306921]
[1734429728829,0.85984482,4017.7,4016.7,2.31456155]
[1734429729157,0.85987707,4017.6,4016.7,2.31456155]
[1734429729459,1.5854,4017.4,4016.4,1.5677]
[1734429729614,1.5854,4017.4,4016.6,2.31456155]
[1734429729813,1.40994464,4017.3,4016.6,2.31456155]
[1734429730071,2.44539038,4017.2,4016.6,2.31456155]
[1734429730366,1.5854,4017.2,4016.6,2.31456155]
[1734429730514,0.21354,4017.1,4016.6,2.31456155]
[1734429732134,0.21354,4017.1,4016.6,5.31456155]
[1734429732867,0.21354,4017.1,4016.6,2.31456155]
[1734429734355,0.85986741,4017.0,4016.6,2.31456155]
[1734429734890,0.21354,4017.1,4016.6,2.31456155]
[1734429735024,1.19858752,4017.0,4016.6,2.31456155]
[1734429735378,0.33883986,4017.0,4016.6,2.31456155]
[1734429736221,1.5752,4016.9,4016.2,2.31456155]
[1734429736929,1.5752,4016.9,4016.2,5.31456155]
[1734429737119,1.5752,4016.9,4016.6,2.31456155]
[1734429737476,1.78795799,4016.9,4016.6,2.31456155]
[1734429739268,0.21275799,4016.9,4016.6,2.31456155]
[1734429741828,1.5752,4017.1,4016.6,2.31456155]
[1734429745754,0.55,4017.0,4016.6,2.31456155]
[1734429746360,0.55,4017.0,4016.4,0.28850766]
[1734429746666,0.55,4017.0,4016.5,2.31456155]
[1734429750705,1.574,4016.9,4016.1,2.31456155]
[1734429750917,0.1574,4016.8,4016.1,2.31456155]
[1734429751913,0.1574,4016.8,4016.5,2.31456155]
[1734429755705,1.03945863,4017.2,4016.5,3.84616155]
[1734429755921,1.03945863,4017.5,4017.1,2.31456155]
[1734429756089,1.574,4017.9,4017.5,2.31456155]
[1734429756981,2.61345863,4018.2,4017.5,2.31456155]
[1734429757316,2.56698532,4018.1,4017.5,2.31456155]
[1734429757525,0.85991363,4018.0,4017.5,2.31456155]
[1734429758482,0.41720124,4018.1,4017.5,2.31456155]
[1734429759330,0.55,4017.8,4017.1,2.31456155]
[1734429759528,0.85998343,4017.7,4017.1,2.31456155]
[1734429759734,0.55,4017.8,4017.1,2.31456155]
[1734429759887,3.73945566,4017.8,4017.1,2.31456155]
[1734429760232,2.15002725,4017.7,4017.1,2.31456155]
[1734429760523,1.58945863,4017.8,4017.1,2.31456155]
[1734429760826,1.33219433,4017.7,4017.1,2.31456155]
[1734429761041,0.47220124,4017.7,4017.1,2.31456155]
[1734429761917,0.47220124,4017.7,4017.6,2.31456155]
[1734429762118,1.574,4017.9,4017.6,2.31456155]
[1734429762325,8.73,4018.1,4017.6,2.31456155]
[1734429762490,0.85993215,4018.0,4017.6,2.31456155]
[1734429762695,0.85993215,4018.0,4017.6,2.60306921]
[1734429763044,2.61345863,4018.2,4017.6,2.60306921]
[1734429763045,1.574,4018.2,4017.7,3.28850766]
[1734429763249,1.99120124,4018.2,4017.7,3.28850766]
[1734429763427,1.03945863,4018.6,4018.1,2.31456155]
[1734429763627,1.03945863,4018.9,4018.5,2.31456155]
[1734429763792,1.03945863,4019.0,4018.5,2.31456155]
[1734429764137,1.03945863,4019.1,4018.5,2.31456155]
[1734429764440,1.27686189,4019.0,4018.5,2.31456155]
[1734429764743,0.41720124,4019.0,4018.5,2.31456155]
[1734429766104,2.60955863,4019.5,4018.6,3.0]
[1734429766311,2.14797498,4019.4,4018.6,3.0]
[1734429766511,2.60955863,4019.5,4018.6,3.0]
[1734429766712,2.14727835,4019.4,4018.6,3.0]
[1734429766913,2.14729356,4019.3,4018.5,2.31456155]
[1734429767114,2.14729356,4019.3,4018.3,3.0]
[1734429767115,1.5701,4019.1,4018.3,3.0]
[1734429767344,0.55,4018.9,4018.1,2.31456155]
[1734429767694,0.55,4019.0,4018.1,2.31456155]
[1734429768445,0.55,4018.8,4018.1,2.31456155]
[1734429768751,1.58945863,4019.0,4018.1,2.31456155]
[1734429768938,0.55,4018.8,4018.1,2.31456155]
[1734429769092,0.55,4018.8,4018.0,3.0]
[1734429769292,0.55,4018.6,4017.9,0.28850766]
[1734429770149,1.5701,4018.7,4017.7,2.31456155]
[1734429770150,2.42901943,4018.5,4017.7,2.31456155]
[1734429770409,2.42901943,4018.5,4016.0,4.38585439]
[1734429770410,1.4089464,4018.4,4017.2,2.60306921]
[1734429770699,0.55,4018.2,4017.2,2.60306921]
[1734429770846,1.5701,4018.1,4017.2,2.60306921]
[1734429771047,0.55,4018.0,4017.2,2.31456155]
[1734429771650,0.55,4017.8,4017.2,2.31456155]
[1734429773862,0.55,4017.6,4017.2,2.31456155]
[1734429774060,0.55,4017.6,4016.8,0.28850766]
[1734429774061,0.55,4017.4,4016.8,2.60306921]
[1734429775411,0.55,4017.4,4016.9,3.0]
[1734429776504,0.55,4017.4,4016.8,2.60306921]
[1734429777091,0.55,4017.4,4016.8,2.31456155]
[1734429777793,1.6207,4017.3,4016.8,2.31456155]
[1734429778016,0.43501686,4017.2,4016.8,2.31456155]
[1734429779705,0.55,4017.1,4016.8,2.31456155]
[1734429779919,0.55,4017.1,4016.4,2.31456155]
[1734429782129,2.36722692,4017.0,4016.3,0.28850766]
[1734429782347,0.55,4016.7,4015.6,2.31456155]
[1734429782681,0.55,4016.5,4015.7,0.28850766]
[1734429782878,0.55,4016.5,4016.0,2.31456155]
[1734429783077,0.55,4016.7,4016.0,2.31456155]
[1734429783294,0.85934527,4016.6,4016.0,2.31456155]
[1734429783490,1.26867039,4016.5,4016.0,2.31456155]
[1734429784928,4.5079,4016.4,4016.0,2.31456155]
[1734429785318,3.0,4016.4,4016.0,2.31456155]
[1734429785483,1.5079,4016.3,4015.6,2.31456155]
[1734429786130,0.55,4016.2,4015.6,2.31456155]
[1734429786295,1.18265704,4016.2,4015.7,0.28850766]
[1734429787780,1.18265704,4016.2,4015.6,2.31456155]
[1734429789708,1.5079,4016.3,4016.1,2.31456155]